Cogmind - Beta 11.1 @@@ ROGUE MODE // 2022.09.23 @ 21:58:29 Player: Flerik Result: Destroyed by S-10 Pest with Light Assault Rifle Performance ------------- Evolutions (0) 0 Regions Visited (1) 200 Robots Destroyed (6) 30 Value Destroyed (152) 152 Prototype IDs (0) 0 Alien Tech Used (0) 0 Bonus (0) 0 TOTAL SCORE: 382 Bonus ------- None Cogmind --------- Core Integrity 0/250 Matter 298/300 Energy 100/100 System Corruption 0% Temperature Warm (187) Movement Core (200) Ox3 Location -10/Materials Parts ------- > --- POWER (1) -------- (None) > --- PROPULSION (2) --- (None) > --- UTILITY (2) ------ Medium Storage Unit Improved Terrain Scanner > --- WEAPON (2) ------- (None) > --- INVENTORY (10) --- Ion Engine Light Ion Engine Small Storage Unit Seismic Detector Peak State ------------ > --- POWER ------------ Ion Engine > --- PROPULSION ------- Aluminum Leg Aluminum Leg > --- UTILITY ---------- Medium Storage Unit Improved Terrain Scanner > --- WEAPON ----------- EM Pulse Gun Medium Laser > --- INVENTORY -------- Ion Engine Light Ion Engine Small Storage Unit Seismic Detector Assault Rifle [Rating: 9] Favorites ----------- Power Ion Engine Engine Ion Engine Power Core Light Nuclear Core Propulsion Aluminum Leg Leg Aluminum Leg Utility Improved Terrain Scanner Device Improved Terrain Scanner Storage Small Storage Unit Weapon Medium Laser Energy Gun Medium Laser Ballistic Gun Assault Rifle Build | -11 -10 ------- Run | Scr Mat Slots Evolved . | . . Power . | . . Propulsion . | . . Utility . | . . Weapon . | . . Parts Attached 10 | 6 4 Power 2 | 1 1 Engine 1 | 1 . Core 1 | . 1 Reactor . | . . Propulsion 2 | 2 . Treads . | . . Leg 2 | 2 . Wheel . | . . Hover . | . . Flight . | . . Utility 3 | 2 1 Device 1 | 1 . Storage 2 | 1 1 Processor . | . . Hackware . | . . Protection . | . . Artifact . | . . Weapon 3 | 1 2 Energy Gun 2 | 1 1 Energy Cannon . | . . Ballistic Gun 1 | . 1 Ballistic Cannon . | . . Launcher . | . . Special Weapon . | . . Impact Weapon . | . . Slashing Weapon . | . . Piercing Weapon . | . . Special Melee Weapon . | . . Unidentified Prototypes . | . . Parts Lost 7 | . 7 Power 2 | . 2 Propulsion 2 | . 2 Utility . | . . Weapon 3 | . 3 Highest Loss Streak 7 | . 7 To Critical Strikes . | . . Average Slot Usage (%) 80 | . 80 Engine 11 | . 11 Leg 24 | . 24 Device 14 | . 14 Storage 14 | . 14 Energy Gun 13 | . 13 Ballistic Gun 1 | . 1 Naked Turns . | . . Heaviest Build 18 | 13 18 Greatest Support 20 | 20 20 Greatest Overweight (x) 5 | . 5 Average Overweight (x) . | . . Largest Inventory Capacity 10 | 8 10 Average Capacity 8 | 7 9 Most Carried 6 | 5 6 Average Carried 3 | 2 5 Final Capacity 10 | 8 10 Final Carried 5 | 5 4 Class Distribution -------------------- 100% | Mutant Dominant Class ---------------- Mutant | -10/Materials Resources | -11 -10 ----------- Run | Scr Mat Matter Collected 284 | 168 116 Remotely . | . . Salvage Created 190 | 12 178 Parts 11 | 5 6 Haulers Intercepted . | . . Recyclers Shooed . | . . Parts Field Recycled . | . . Retrieved Matter . | . . Parts Self-Destructed . | . . Prevented . | . . Kills | -11 -10 ------- Run | Scr Mat Combat Hostiles Destroyed 5 | . 5 Guns 4 | . 4 AOE 1 | . 1 Classes Destroyed 3 | 1 2 Tunneler 1 | 1 . Swarmer 2 | . 2 Grunt 3 | . 3 Best Kill Streak 4 | 1 4 Combat Bots Only 4 | . 4 Max Kills in Single Turn 1 | 1 1 Gunslinging . | . . Exploded 1 | . 1 Melee . | . . Uniques/NPCs Destroyed . | . . Combat | -11 -10 -------- Run | Scr Mat Damage Taken 912 | . 912 Core 252 | . 252 Absorbed by Shields . | . . Core Remaining (%) 100 | 100 . Volleys Fired 39 | 14 25 Largest 2 | 1 2 Hottest 90 | 50 90 Shots Fired 47 | 14 33 Gun 47 | 14 33 Cannon . | . . Launcher . | . . Special . | . . Kinetic 7 | . 7 Thermal 36 | 14 22 Explosive . | . . Electromagnetic 4 | . 4 Robot Hit Streak 5 | 2 5 Robot Miss Streak 3 | 3 3 Penetration Max . | . . Secondary Targets . | . . Shots Hit Robots 25 | 6 19 Core Hits 10 | 1 9 Critical Kills . | . . Critical Parts Destroyed . | . . Critical Strikes 3 | 2 1 Burn 3 | 2 1 Melee Attacks . | . . Impact . | . . Slashing . | . . Piercing . | . . Sneak Attacks . | . . Combat Hostiles . | . . Follow-up Attacks . | . . Damage Inflicted 370 | 88 282 Guns 326 | 88 238 Cannons . | . . Explosions 44 | . 44 Melee . | . . Ramming . | . . Kinetic 61 | . 61 Thermal 285 | 88 197 Explosive . | . . Electromagnetic 24 | . 24 Impact . | . . Slashing . | . . Piercing . | . . Highest Corruption . | . . Average Corruption . | . . Corruption Purged . | . . Corruption Blocked . | . . Overload Shots . | . . Overflow Damage . | . . Projectiles . | . . Explosions . | . . Melee . | . . Knockbacks . | . . Impact . | . . Kinetic . | . . Secondary . | . . Self-Inflicted Damage . | . . Shots . | . . Rammed . | . . Targets Rammed . | . . Kicked . | . . Crushed . | . . Highest Temperature 377 | 90 377 Average Temperature 137 | 39 182 Received Heat Transfer 369 | . 369 Effects 3 | . 3 Energy Bleed 1 | . 1 Interference 2 | . 2 Siege Activations . | . . Robots Corrupted . | . . Combat Hostiles . | . . Parts Fried . | . . Impact Corruptions . | . . Robots Melted . | . . Combat Hostiles . | . . Parts Melted 1 | . 1 Heat Transferred 925 | 407 518 Parts Sabotaged . | . . Parts Stolen . | . . Parts Stripped . | . . Power Chain Reactions 1 | . 1 Missiles Intercepted . | . . Alert | -11 -10 ------- Run | Scr Mat Peak Influence 147 | 5 147 Initial 3 | . 3 Average 28 | 1 47 Maximum Alert Level . | . . Low Security (%) 100 | 100 100 Level 1 . | . . Level 2 . | . . Level 3 . | . . Level 4 . | . . Level 5 . | . . High Security . | . . Max Security . | . . Squads Dispatched 1 | . 1 Investigation . | . . Extermination . | . . Reinforcement 1 | . 1 Assault . | . . Garrison . | . . Intercept . | . . Searches Triggered . | . . Construction Impeded . | . . Haulers Reinforced . | . . Active Scanning Responses . | . . Cargo Convoy Interrupts . | . . Stealth | -11 -10 --------- Run | Scr Mat Distress Signals . | . . Communications Jammed . | . . Distress Signals . | . . Times Spotted 11 | . 11 Peak Tracking Total 8 | . 8 Tactical Retreats . | . . Traps | -11 -10 ------- Run | Scr Mat Traps Triggered . | . . Indirectly . | . . Trap Hack Attempts . | . . Triggered . | . . Disarmed . | . . Reprogrammed . | . . Reused . | . . Traps Extracted . | . . Installed . | . . Triggered . | . . Machines | -11 -10 ---------- Run | Scr Mat Machines Disabled 1 | . 1 Max in Single Turn 1 | . 1 Machines Sabotaged . | . . Garrisons Compromised . | . . Overloaded Fab Kills . | . . Hacking | -11 -10 --------- Run | Scr Mat Machines Accessed 1 | . 1 Terminals 1 | . 1 Fabricators . | . . Repair Stations . | . . Recycling Units . | . . Scanalyzers . | . . Garrison Access . | . . Total Hacks 2 | . 2 Successful . | . . Failed 2 | . 2 Catastrophic 1 | . 1 Database Lockouts . | . . Manual 2 | . 2 Terminals 2 | . 2 Fabricators . | . . Repair Stations . | . . Recycling Units . | . . Scanalyzers . | . . Garrison Access . | . . Terminal Hacks . | . . Fabricator Hacks . | . . Repair Station Hacks . | . . Recycling Unit Hacks . | . . Scanalyzer . | . . Garrison Access Hacks . | . . Unauthorized Hacks . | . . Terminals . | . . Fabricators . | . . Repair Stations . | . . Recycling Units . | . . Scanalyzers . | . . Garrison Access . | . . Data Cores Recovered . | . . Used . | . . Hacking Detections . | . . Full Trace Events . | . . Feedback Events . | . . Feedback Blocked . | . . Robot Schematics Acquired . | . . Robots Built . | . . Authchips . | . . Time . | . . Total Robot Build Rating . | . . Part Schematics Acquired . | . . Parts Built . | . . Authchips . | . . Time . | . . Total Part Build Rating . | . . Parts Repaired . | . . Time . | . . Parts Recycled . | . . Recycled Matter . | . . Retrieved Matter . | . . Retrieved Components . | . . Parts Scanalyzed . | . . Part Schematics Acquired . | . . Parts Damaged . | . . Bothacking | -11 -10 ------------ Run | Scr Mat Used RIF Installer . | . . Robots Hacked . | . . Non-combat . | . . Combat . | . . Robot Hacks Applied . | . . Relay Couplers Released . | . . Fabnet Peak Effective % . | . . Robots Rewired . | . . Allies Hacked . | . . Hacks Repelled . | . . Allies | -11 -10 -------- Run | Scr Mat Total Allies . | . . Largest Group . | . . Highest-Rated Group . | . . Highest-Rated Ally . | . . Total Orders . | . . Ally Attacks . | . . Total Damage . | . . Kills . | . . Allies Corrupted . | . . Allies Melted . | . . Intel | -11 -10 ------- Run | Scr Mat Robot Analysis Total . | . . Derelict Logs Recovered . | . . Drone Launches . | . . Drone Recoveries . | . . Exploration | -11 -10 ------------- Run | Scr Mat Turns Passed 297 | 125 172 Spaces Moved 157 | 73 84 Core 10 | 6 4 Treads . | . . Legs 147 | 67 80 Wheels . | . . Hover . | . . Flight . | . . Fastest Speed 50 | 50 120 Average Speed 120 | 114 126 Slowest Speed 300 | 120 300 Overloaded Moves . | . . Propulsion Burnouts . | . . Robots Hopped . | . . Cave-ins Triggered . | . . Exploration Rate (%) 9 | 5 13 Regions Visited 1 Branch Regions . Pre-discovered Areas . | . . Known Exits Taken . | . . Unknown Exits Taken 1 | 1 . Scrap Searched . | . . Spaces Dug . | . . Terrain Destroyed 3 | . 3 Melee . | . . Projectile . | . . AOE 3 | . 3 Terrain Rammed . | . . Walls Destroyed . | . . Machines Disabled . | . . Actions | -11 -10 --------- Run | Scr Mat Total 213 | 97 116 Wait 3 | . 3 Move 156 | 72 84 Hop . | . . Pick Up 5 | 5 . Fast Attach 7 | 6 1 Attach 2 | . 2 Detach . | . . Swap 1 | . 1 Drop . | . . Fire 39 | 14 25 Melee . | . . Ram . | . . Kick . | . . Crush . | . . Escape Stasis . | . . Rewire . | . . Trap . | . . Miscellaneous . | . . Route ------- -11/Scrapyard -10/Materials History --------- Turn | Location | Event 2 | -11/Scrapyard | Discovered new exit (range 16) 126 | -11/Scrapyard | Entered Materials 281 | -10/Materials | Core integrity fell below 50% 293 | -10/Materials | Core integrity fell below 20% 298 | -10/Materials | Destroyed by S-10 Pest with Light Assault Rifle Last Messages --------------- 00268_ U-05 Engineer lays Concrete. 00271_ Aluminum Leg destroyed. 00272_ U-05 Engineer lays Concrete. 00273_ Critical hit (Burn: +37). 00274_ U-05 Engineer lays Concrete. 00277_ Aluminum Leg destroyed. 00277_ U-05 Engineer lays Concrete. 00279_ Med. Laser destroyed. 00279_ U-05 Engineer lays Concrete. 00280_ Overheating: System interference. 00280_ Imp. Terrain Scanner temporarily disabled. 00283_ G-47 Trooper destroyed. 00286_ Assault Rifle destroyed. 00289_ Overheating: Energy bleed (-21). 00289_ Acquired Lgt. Nuclear Core. 00290_ K-01 Serf collects debris. 00293_ Acquired 18 matter. 00296_ K-01 Serf collects debris. 00296_ Lgt. Nuclear Core destroyed. 00296_ Acquired 6 matter. Map ----- +----------------------------------------------------+ | ?????????????????????????????????????????????????? | | ?????????????????????????????????????????????????? | | ?????????????????????????????????????????????????? | | ?????????????????????????????????????????????????? | | ?????????????????????????????????????????????????? | | ?????????????????????????????????????????????????? | | ????????????????? ?????????????????????????????? | | ????????????????? ?????????????????????????????? | | ????????????????? #????????????????????????????? | | ???????????????## #?????????? ?????????????????? | | ????????????????# #????#???????????????????????? | | ????????????????# ##?#?????????????????????????? | | ????????????????# #????????????????????????????? | | ????????????????# #?????????#???#??????????????? | | ????????????????# #?????#?????#????????????????? | | ????????????????# #????????????????????????????? | | ????????????????# #????????????????????????????? | | ?????????? ?????+ ##########???????????????????? | | ????????????????# # ##??????????????????? | | ?????????? ?????# # """""##??????????????????? | | ??????????????? # # """""#???????????????????? | | ?????????????"??# # """""#?#?????????????????? | | ????????????????# # """""#???????????????????? | | ?????????????#??# #k| """""#???????????????????? | | ??????????####### %s% u%%%""#???? ??????????????? | | ??? !%=* # u@%""#?#???? ????????????? | | ????? ####### # %g g #??? ???????????????? | | ?????????????#??# ######+###?#?????????????????? | | ?????????######## #??#??????????????????? | | ?????#???# # #######???????????????? | | ?????????# """ # ! #???????????????? | | ?#???????# "T" + ###### ###?????????????? | | ?????????# # # # ""#??????? ?????? | | ??#??????#== / # # [+ ]T"#?????????????? | | ?????????#= # # # ]]""#?????????????? | | ???????#?############ # ###?????????????? | | ????????????????????# !+ #??#????????????? | | ???????????????##???# /###"Y"###???????????????? | | ??????????????#?????# #?#"""##????????????????? | | ????????????#???????# #?#####??##???#?????????? | | ????????????????????# ?#?????#????????????????? | | ????????????????????#####????????????????????????? | | ?????????????????????????????????????????????????? | | | | | | | | | | | | | | | +----------------------------------------------------+ Best States ------------- Heat Dissipation 25 Energy Generation 14 Energy Capacity 250 Matter Stores 300 Matter Capacity 300 Sight Range 16 Terrain Scan Range 16 Terrain Scan Density 10 Evasion (%) 55 Item Schematics ----------------- None Robot Schematics ------------------ None Fabricated ------------ Nothing Alien Tech Used ----------------- None Achievements -------------- None Challenges ------------ None Game ------ Seed LobotomyAblativeWeb Manual? 0 Play Time 00:03:51 Cumulative 35.5 hours Start 2022.09.23 @ 21:56:06 End 2022.09.23 @ 21:58:29 Sessions 1 Manual Loads 0 Difficulty Rogue Special Mode None Game No. 58 Rogue 57 Adventurer 1 Explorer 0 Win Type - Total 2 Types 2/0/0/0/0/0/0/0/0 Lore% 43 Gallery% 41 Achievement% 37 Wizard Run 0 Options --------- ASCII 0 Keyboard 0 Movement Numpad Keybinds 0 Fullscreen 1 Font 18/SmallcapsGlow Map View 76x50 Tactical HUD 1 Map Filters NONE Filters NONE Steam 1 RUN: 493a8265-a7eb-4682-8eb7-670ad79b3fc3